[Event "Polish Youth B18 Championship 2023"]
[Site "Jastrzebia Gora"]
[Date "2023.03.12"]
[Round "1.8"]
[White "Chyzy, Jakub"]
[Black "Madajczak, Piotr"]
[Result "1/2-1/2"]
[ECO "B11"]
[WhiteElo "2250"]
[BlackElo "1897"]
[Annotator "TA"]
[PlyCount "88"]
[EventDate "2023.03.11"]
[EventType "swiss"]
[EventCountry "POL"]
[SourceTitle "playchess.com"]
[Source "ChessBase"]
[SourceQuality "1"]
[TimeControl "40/5400+30:1800+30"]

{[%evp 10,88,10,19,22,22,22,24,19,16,25,30,24,0,0,15,0,0,35,19,18,31,48,55,63,42,47,0,7,-14,-14,-12,-12,-12,-18,-16,-8,-17,0,0,0,-2,0,-2,0,0,0,0,0,-4,-4,-6,-6,-6,-7,-7,0,-7,0,0,0,0,0,-12,0,-6,-2,-5,0,0,0,0,0,0,0,0,0,0,0,0,0]} 1. e4 {[%emt 0:00:02]} c6 {[%emt 0:00:08]} 2. Nf3 {[%emt 0:00:04]} d5 {[%emt 0:00:10]} 3. Nc3 {[%emt 0:00:03]} Bg4 {[%emt 0:00:37]} 4. h3 {[%emt 0:00:03]} Bxf3 {[%emt 0:00:12]} 5. Qxf3 {[%emt 0:00:02]} e6 {[%emt 0:00:15]} 6. Be2 {[%emt 0:00:03]} Bc5 {[%emt 0:02:18] B11: Caro-Kann: Two Knights Variation.} 7. O-O {[%emt 0:02:47]} Ne7 {[%emt 0:02:00]} 8. Na4 {[%emt 0:02:43]} Bd6 {[%emt 0:02:03] White has an edge.} 9. d4 {[%emt 0:00:10]} dxe4 {[%emt 0:03:16]} 10. Qxe4 {[%emt 0:00:08]} Nd7 {[%emt 0:01:34]} 11. c4 {[%emt 0:12:24]} O-O {[%emt 0:05:38]} 12. Rd1 {[%emt 0:06:02]} Nf6 {[%emt 0:02:57]} 13. Qf3 {[%emt 0:02:10] [#]} Qa5 $146 {[%emt 0:06:22] Prevents Nc5} ({Predecessor:} 13... Re8 14. Nc3 Ng6 15. Bg5 h6 16. Bxf6 Qxf6 17. Qxf6 gxf6 18. d5 cxd5 19. cxd5 Red8 {½-½ Skytte,R (2354)-Jacobsen,M (2267) Odense IM-B 2022 (3)}) 14. Nc3 {[%emt 0:02:16]} Rad8 {[%emt 0:09:42][%cal Ba8d8,Bd8d7,Bd7d4][%mdl 32]} 15. Bd3 {[%emt 0:22:08]} Bb8 {[%emt 0:14:24]} 16. g3 {[%emt 0:08:28][%cal Ob2b4]} Rd7 {[%emt 0:16:29]} 17. Bd2 {[%emt 0:28:08][%cal Oc3d5]} Qd8 {[%emt 0:03:15]} 18. Bg5 {[%emt 0:03:22] This pair of bishops is nice.} Rxd4 {[%emt 0:20:17] The position is equal.} 19. Bxf6 {[%emt 0:00:43]} gxf6 {[%emt 0:00:06]} 20. Qxf6 {[%emt 0:03:09][%cal Od3h7] [#] Hoping for Bxh7+!} Ng6 {[%emt 0:05:18] Dodges Bxh7+} 21. Qxd8 {[%emt 0:00:36]} Rfxd8 {[%emt 0:00:01]} 22. Be2 {[%emt 0:01:04]} Be5 {[%emt 0:01:10]} 23. Rxd4 {[%emt 0:02:47]} Rxd4 {[%emt 0:00:03]} 24. Rd1 {[%emt 0:00:09] Wards off Rd2} Rxd1+ {[%emt 0:00:58]} 25. Nxd1 $11 {[%emt 0:00:11][%mdl 4096] Endgame KBN-KBN} Bd4 {[%emt 0:01:48]} 26. Kg2 {[%emt 0:00:03]} Ne5 {[%emt 0:00:19]} 27. f4 {[%emt 0:00:12]} Nd7 {[%emt 0:00:09]} 28. Kf3 {[%emt 0:00:23]} f5 {[%emt 0:00:34]} 29. Bd3 {[%emt 0:00:15]} h5 {[%emt 0:01:28]} 30. g4 {[%emt 0:03:21]} hxg4+ {[%emt 0:00:12]} 31. hxg4 {[%emt 0:00:03]} fxg4+ {[%emt 0:00:28]} 32. Kxg4 {[%emt 0:00:08]} Kf7 {[%emt 0:00:16]} 33. Kf3 {[%emt 0:00:32]} Nf6 {[%emt 0:00:30]} 34. b4 {[%emt 0:00:30]} Ke7 {[%emt 0:00:33]} 35. Ne3 {[%emt 0:00:44]} Bc3 {[%emt 0:01:11]} 36. Nc2 {[%emt 0:01:49]} b6 {[%emt 0:00:42]} 37. Be4 {[%emt 0:00:36]} Kd6 {[%emt 0:00:41]} 38. Ke3 {[%emt 0:00:37]} Ng4+ {[%emt 0:00:41]} 39. Kd3 {[%emt 0:00:21]} Bg7 {[%emt 0:00:09]} 40. Bg2 {[%emt 0:00:00]} Nf2+ {[%emt 0:00:00]} 41. Ke2 {[%emt 0:01:21]} Ng4 {[%emt 0:01:11]} 42. Bh3 {[%emt 0:00:24]} Nh6 {[%emt 0:06:03]} 43. Ne3 {[%emt 0:10:17]} e5 {[%emt 0:09:26]} 44. fxe5+ {[%emt 0:09:13]} Kxe5 {Weighted Error Value: White=0.05 (flawless) /Black=0.04 (flawless)} 1/2-1/2

[Event "Polish Youth B18 Championship 2023"]
[Site "Jastrzebia Gora"]
[Date "2023.03.12"]
[Round "1.9"]
[White "Kozlowski, Franciszek"]
[Black "Kacprzak, Kacper"]
[Result "0-1"]
[ECO "E04"]
[WhiteElo "1829"]
[BlackElo "2248"]
[Annotator "TA"]
[PlyCount "60"]
[EventDate "2023.03.11"]
[EventType "swiss"]
[EventCountry "POL"]
[SourceTitle "playchess.com"]
[Source "ChessBase"]
[SourceQuality "1"]
[TimeControl "40/5400+30:1800+30"]

{[%evp 11,60,0,0,-8,-22,0,-8,-35,-10,-30,-29,-42,-51,-52,-37,-79,-79,-72,-70,-65,-64,-129,-106,-129,-127,-109,-121,-240,-248,-239,-227,-306,-264,-261,-262,-309,-204,-431,-431,-548,-371,-381,-382,-368,-378,-409,-389,-381,-381,-520,-536]} 1. d4 {[%emt 0:00:16]} Nf6 {[%emt 0:00:05]} 2. c4 {[%emt 0:00:08]} e6 {[%emt 0:00:03]} 3. g3 {[%emt 0:00:04]} d5 {[%emt 0:00:37]} 4. Nf3 {[%emt 0:01:04]} dxc4 {[%emt 0:00:04]} 5. Bg2 {[%emt 0:00:14]} c6 {[%emt 0:00:05]} 6. O-O {[%emt 0:00:51]} b5 {[%emt 0:00:52]} 7. a4 {[%emt 0:00:35] E04: Open Catalan: 5 Nf3.} Bb7 {[%emt 0:00:16]} 8. Ne5 {[%emt 0:02:25] [#] aiming for axb5.} a6 {[%emt 0:00:21]} 9. Nc3 {[%emt 0:02:02] The position is equal.} Qc8 {[%emt 0:01:11]} 10. Qc2 {[%emt 0:06:42]} Nbd7 {[%emt 0:01:42]} 11. Bf4 {[%emt 0:04:52]} Be7 {[%emt 0:01:54]} 12. Rfd1 {[%emt 0:07:48]} O-O {[%emt 0:01:39]} (12... Nd5 {is interesting.} 13. Ne4 N7f6 14. Nc5 Nxf4 15. gxf4 Nd5) 13. e4 {[%emt 0:01:29]} Nxe5 {[%emt 0:11:32]} 14. Bxe5 {[%emt 0:00:10]} Nd7 {[%emt 0:25:56] Threatens to win with ...Nxe5.} 15. Bf4 {[%emt 0:00:19] [#]} Rd8 $146 {[%emt 0:05:38]} ({Predecessor:} 15... e5 16. dxe5 Nc5 17. Bf1 Qe6 18. axb5 axb5 19. Rxa8 Rxa8 20. Ne2 Nb3 21. h4 Bc5 {½-½ Fawole,J-Mihajlov,S (2185) Gibraltar Challengers-B 12th 2014 (3)}) 16. d5 {[%emt 0:12:35] Black converts the advantage convincingly.} ({Better is} 16. h4 $15) 16... e5 {[%emt 0:09:08]} 17. d6 {[%emt 0:06:48]} Bf8 {[%emt 0:00:26]} 18. Bg5 {[%emt 0:05:46] [#]} Nf6 $1 {[%emt 0:00:18][%cal Bd7f6,Bf6g4,Bg4e5,Be5d3][%mdl 32]} 19. f4 {[%emt 0:04:25]} (19. Bxf6 $17 gxf6 20. Qe2 (20. axb5 axb5 21. Rxa8 Bxa8 $17) 20... Rxd6 21. Rxd6 Bxd6 22. Nd1) 19... Rxd6 $19 {[%emt 0:05:03]} (19... Bxd6 20. Rxd6 Rxd6 21. fxe5 $16) 20. fxe5 {[%emt 0:02:31]} Rxd1+ {[%emt 0:00:04]} 21. Rxd1 {[%emt 0:00:23]} Ng4 {[%emt 0:00:05]} 22. Bh3 {[%emt 0:02:48]} Qe6 {[%emt 0:01:53]} 23. Qd2 {[%emt 0:01:51]} Re8 {[%emt 0:06:42] And now ...b4 would win.} 24. Ne2 $2 {[%emt 0:13:26]} (24. Bxg4 {is a better defense.} Qxg4 25. Qd7 Qxd7 26. Rxd7) 24... Bc8 {[%emt 0:04:09]} (24... bxa4 $2 25. Nd4 Bc5 26. Be3 $19) (24... Bc5+ $2 25. Kg2 $19) 25. Qd4 {[%emt 0:14:28] Prevents Bc5.} Qxe5 {[%emt 0:02:44]} 26. Qxe5 {[%emt 0:00:22]} Nxe5 {[%emt 0:00:09]} (26... Rxe5 $2 {perishes.} 27. Rd8 Rxg5 28. Rxc8 $19) 27. Bxc8 {[%emt 0:01:27]} Rxc8 {[%emt 0:00:04]} 28. Be3 {[%emt 0:00:46]} Re8 {[%emt 0:01:40]} (28... bxa4 $2 {loses.} 29. Ra1 $19) 29. axb5 {[%emt 0:02:14]} axb5 {[%emt 0:00:05]} (29... cxb5 $2 {too greedy.} 30. Nf4 $19) 30. Ra1 {[%emt 0:00:14]} Nd3 {[%emt 0:00:31][%csl LRb2,LRe4] Weighted Error Value: White=0.46/Black=0.20 (precise)} 0-1

[Event "Polish Youth B18 Championship 2023"]
[Site "Jastrzebia Gora"]
[Date "2023.03.12"]
[Round "1.10"]
[White "Luberanski, Jakub"]
[Black "Kotowicz, Kamil"]
[Result "1-0"]
[ECO "E10"]
[WhiteElo "2242"]
[BlackElo "1828"]
[Annotator "TA"]
[PlyCount "105"]
[EventDate "2023.03.11"]
[EventType "swiss"]
[EventCountry "POL"]
[SourceTitle "playchess.com"]
[Source "ChessBase"]
[SourceQuality "1"]
[TimeControl "40/5400+30:1800+30"]

{[%evp 15,105,0,22,14,39,39,51,0,52,33,45,4,4,7,40,2,127,141,130,110,110,106,103,112,110,99,104,116,112,114,118,125,118,109,104,107,140,125,116,116,104,114,143,148,147,147,138,108,97,105,148,141,154,157,130,63,101,110,142,167,164,143,233,144,255,264,275,290,370,360,556,294,309,316,617,605,719,658,2657,2321,29975,29976,29976,29977,29976,29978,29978,29979,29982,29979,29983,29984]} 1. d4 {[%emt 0:00:02]} Nf6 {[%emt 0:00:21]} 2. c4 {[%emt 0:00:10]} e6 {[%emt 0:00:10]} 3. Nf3 {[%emt 0:00:04]} d5 {[%emt 0:00:08]} 4. e3 {[%emt 0:00:04]} Be7 {[%emt 0:02:52]} 5. Be2 {[%emt 0:00:27]} O-O {[%emt 0:01:18]} 6. O-O {[%emt 0:00:17]} c5 {[%emt 0:03:58]} 7. cxd5 {[%emt 0:00:17]} Nxd5 {[%emt 0:00:31]} 8. Nc3 {[%emt 0:00:06]} Nc6 {[%emt 0:03:10]} 9. e4 {[%emt 0:05:58] D41: Queen's Gambit Declined: Semi-Tarrasch with 5 cxd5.} Nb6 {[%emt 0:06:59][%cal Rc5d4]} 10. dxc5 {[%emt 0:04:35]} Bxc5 {[%emt 0:05:11] [#]} 11. Qc2 $146 {[%emt 0:03:11]} (11. Bf4 $14) ({Predecessor:} 11. Be3 Bxe3 12. fxe3 Qe7 13. Rc1 Nd7 14. Qe1 Nde5 15. Qg3 f6 16. a3 Bd7 17. b4 {½-½ Ozols,K-Koshnitsky,G AUS-ch Adelaide 1960 (13)}) 11... Qe7 {[%emt 0:01:59]} (11... e5 $11) 12. e5 $14 {[%emt 0:04:58]} Nd4 {[%emt 0:13:20]} 13. Qe4 {[%emt 0:08:01]} Nxe2+ {[%emt 0:02:15]} 14. Qxe2 {[%emt 0:00:41]} h6 {[%emt 0:04:31] Prevents Bg5} 15. Ne4 {[%emt 0:04:22][%cal Oc1h6]} Bd7 {[%emt 0:02:54] [#]} (15... Nd5 $11 {remains equal.}) 16. Bxh6 $1 $16 {[%emt 0:11:43][%mdl 512]} gxh6 {[%emt 0:09:23]} 17. Qc2 {[%emt 0:01:18]} Kg7 {[%emt 0:00:19] Against Nf6} 18. Qxc5 {[%emt 0:03:13]} ({But not} 18. Nxc5 Rac8 19. b4 Na4 $14) 18... Qxc5 {[%emt 0:00:41]} 19. Nxc5 {[%emt 0:00:04]} Bc6 {[%emt 0:01:03]} 20. Nd4 $1 {[%emt 0:00:41]} Bd5 {[%emt 0:01:02]} 21. b3 {[%emt 0:00:25]} a6 {[%emt 0:01:58]} 22. Rac1 {[%emt 0:00:08] White is more active.} Rac8 {[%emt 0:00:13][%cal Od5c4]} 23. Rfd1 {[%emt 0:00:52]} Rfd8 {[%emt 0:02:07]} 24. f4 {[%emt 0:01:01]} Nd7 {[%emt 0:02:21]} 25. Nd3 {[%emt 0:04:02][%cal Bc5d3,Bd3c1,Bc1e2][%mdl 32]} Kf8 {[%emt 0:03:07]} 26. Rxc8 {[%emt 0:02:28]} Rxc8 {[%emt 0:00:06]} 27. Rc1 {[%emt 0:00:37]} Rxc1+ {[%emt 0:00:40]} 28. Nxc1 {[%emt 0:00:03][%mdl 4096] Endgame KBN-KNN} Nc5 {[%emt 0:02:17]} 29. Kf2 {[%emt 0:00:45]} Kg7 {[%emt 0:00:38]} 30. g3 {[%emt 0:00:10]} Kg6 {[%emt 0:00:35]} 31. b4 {[%emt 0:03:12]} Ne4+ {[%emt 0:02:07]} 32. Ke3 {[%emt 0:00:21] Nce2 is the strong threat.} Kh5 {[%emt 0:00:58]} 33. Nce2 {[%emt 0:18:01] Hoping for f5.} Kg4 {[%emt 0:05:09] [#]} 34. f5 $1 {[%emt 0:01:21][%mdl 512] Strongly threatening fxe6.} Ng5 {[%emt 0:02:10] [#]} (34... exf5 $2 35. h3+ Kxh3 36. Nf4+ (36. Nxf5 Kh2 $16) 36... Kg4 37. Nxd5 $18) 35. fxe6 {[%emt 0:02:27]} (35. h4 $1 $16 {[%cal Rh4g5]} Nh7 36. Nc3) 35... Nxe6 {[%emt 0:02:01]} 36. a3 {[%emt 0:03:35]} Bc4 {[%emt 0:02:24]} 37. Nxe6 {[%emt 0:02:01]} Bxe6 {[%emt 0:01:15] KB-KN} 38. Nf4 {[%emt 0:00:51] Threatens to win with Nxe6.} Bd7 {[%emt 0:00:32]} (38... Bb3 $16) 39. Kd4 {[%emt 0:07:40] Kc5 would be deadly.} Bc6 {[%emt 0:04:47]} (39... h5 $16 {is a better defense.} 40. Kc5 Bb5 41. h3+ Kg5) 40. Kc5 $18 {[%emt 0:00:00]} Kf5 {[%emt 0:00:00] [#]} 41. Kd6 {[%emt 0:01:18]} Bb5 {[%emt 0:03:27]} 42. Nd5 {[%emt 0:03:09]} Bd3 {[%emt 0:02:23]} (42... h5 $142 43. Nf6 Be2) 43. Nf6 {[%emt 0:00:41]} Bb5 {[%emt 0:02:58]} 44. Ng8 {[%emt 0:00:40]} Kg5 {[%emt 0:01:07]} (44... h5 45. Nf6 Be2) 45. h4+ {[%emt 0:00:49]} Kh5 {[%emt 0:04:46] [#]} 46. g4+ $1 {[%emt 0:04:24][%mdl 576] Decoy} Kxg4 {[%emt 0:01:36]} (46... Kg6 47. Ne7+) 47. Nxh6+ {[%emt 0:00:02]} Kxh4 {[%emt 0:00:07]} 48. Nxf7 {[%emt 0:00:02] White mates.} Kg4 {[%emt 0:00:10]} 49. Nd8 {[%emt 0:01:54]} b6 {[%emt 0:00:11]} 50. e6 {[%emt 0:00:04][%cal Be5e6,Be6e7][%mdl 32]} Kf5 {[%emt 0:00:11]} 51. e7 {[%emt 0:00:04]} Kf6 {[%emt 0:00:04]} 52. Ne6 {[%emt 0:00:15]} Kf7 {[%emt 0:00:42]} 53. Nc7 {[%emt 0:00:07] Weighted Error Value: White=0.13 (very precise) /Black=0.46} 1-0

[Event "Polish Youth B18 Championship 2023"]
[Site "Jastrzebia Gora"]
[Date "2023.03.12"]
[Round "1.11"]
[White "Smetek, Michal"]
[Black "Ochedzan, Tymon"]
[Result "1/2-1/2"]
[ECO "A57"]
[WhiteElo "1787"]
[BlackElo "2240"]
[Annotator "TA"]
[PlyCount "123"]
[EventDate "2023.03.11"]
[EventType "swiss"]
[EventCountry "POL"]
[SourceTitle "playchess.com"]
[Source "ChessBase"]
[SourceQuality "1"]
[TimeControl "40/5400+30:1800+30"]

{[%evp 12,123,34,30,44,2,0,0,13,0,0,0,-8,0,0,-1,0,0,0,0,0,0,14,14,0,0,17,0,36,43,29,35,31,23,48,27,113,104,99,77,72,70,74,63,79,76,197,210,283,289,243,218,752,478,543,483,540,514,564,629,29973,29974,29974,29975,29971,29973,29972,29971,29971,29972,29972,29973,29971,29962,29955,12847,8398,2539,29976,29977,29977,29978,29975,29978,29982,29983,29984,29973,29972,29964,29978,29979,29978,1233,214,199,347,0,29973,0,0,0,0,0,0,0,0,0,0,0,0,0,0,0]} 1. d4 {[%emt 0:00:02]} Nf6 {[%emt 0:00:05]} 2. c4 {[%emt 0:00:06]} c5 {[%emt 0:00:03]} 3. d5 {[%emt 0:00:08]} b5 {[%emt 0:00:10]} 4. cxb5 {[%emt 0:02:02]} a6 {[%emt 0:00:21]} 5. b6 {[%emt 0:00:14]} g6 {[%emt 0:02:08]} 6. Nc3 {[%emt 0:00:34]} d6 {[%emt 0:02:22]} 7. Nf3 {[%emt 0:01:25]} Bg7 {[%emt 0:00:29][%cal Oe8g8] A57: Benko/Volga Gambit.} 8. Nd2 {[%emt 0:02:25]} Nbd7 {[%emt 0:03:28]} 9. e4 {[%emt 0:01:07]} O-O {[%emt 0:02:31]} 10. Be2 {[%emt 0:04:39]} Nxb6 {[%emt 0:04:04]} 11. O-O {[%emt 0:01:26]} e6 {[%emt 0:05:51]} 12. dxe6 {[%emt 0:08:06]} Bxe6 {[%emt 0:01:00]} 13. a4 {[%emt 0:00:26]} d5 {[%emt 0:06:19]} 14. a5 {[%emt 0:03:57] [#]} Nbd7 $146 {[%emt 0:05:28]} ({Predecessor:} 14... d4 15. axb6 dxc3 16. b7 cxb2 17. Bxb2 Ra7 18. Bxa6 Qb6 19. Rb1 Qxa6 20. Bxf6 Rxb7 21. Bxg7 Kxg7 22. Rxb7 Qxb7 {½-½ Ertbjerg,P (1925)-Nielsen,M (2062) Valby K41 Aabent-ch 1011 2010 (7)}) 15. exd5 {[%emt 0:02:19]} Nxd5 {[%emt 0:00:13]} ({Don't do} 15... Bxd5 16. Nxd5 Nxd5 17. Nc4 $14) 16. Nde4 {[%emt 0:21:00]} Nb4 {[%emt 0:06:30]} 17. Be3 {[%emt 0:11:42]} Qc7 {[%emt 0:05:55]} 18. Qa4 {[%emt 0:04:23]} Rab8 {[%emt 0:02:09]} 19. Rac1 {[%emt 0:02:10]} Bf5 {[%emt 0:05:33]} 20. Rfd1 {[%emt 0:01:59]} Be5 {[%emt 0:17:28]} 21. h3 {[%emt 0:04:27]} Rfd8 {[%emt 0:03:28]} 22. g4 {[%emt 0:04:10][%cal Bg2g4,Bg4g5][%mdl 32]} Be6 {[%emt 0:03:52]} 23. Ng5 $1 {[%emt 0:01:01]} Nf6 {[%emt 0:03:06]} (23... Bf4 $1 $11 {remains equal.} 24. Nxe6 fxe6) 24. Nxe6 $16 {[%emt 0:02:44]} fxe6 {[%emt 0:00:03]} 25. g5 {[%emt 0:04:39]} Rxd1+ {[%emt 0:02:58]} 26. Qxd1 {[%emt 0:02:15]} Nfd5 {[%emt 0:01:11]} 27. Nxd5 {[%emt 0:01:59]} Nxd5 {[%emt 0:00:05]} 28. Bxc5 {[%emt 0:03:05]} Bf4 {[%emt 0:03:21] [#]} (28... Bxb2 $16 29. Bg4 Nf4) 29. Bg4 $1 $18 {[%emt 0:01:55] This pair of bishops is nice.} Re8 {[%emt 0:05:20] [#]} (29... Qe5 30. Qe1) 30. Bxe6+ $1 {[%emt 0:02:40][%mdl 576] Remove Defender} Rxe6 {[%emt 0:00:03]} 31. Qxd5 {[%emt 0:00:06]} Qf7 {[%emt 0:02:08]} (31... Qe5 32. Rd1 Bxg5) 32. Rd1 {[%emt 0:00:19] Qa8+ would kill now.} Re1+ {[%emt 0:01:17]} 33. Kg2 $1 {[%emt 0:00:10]} Rxd1 {[%emt 0:00:10]} 34. Qxd1 {[%emt 0:00:22]} Bxg5 {[%emt 0:00:58][%mdl 4096] Endgame KQB-KQB} 35. b4 {[%emt 0:00:35]} (35. Qf3 Be7 $18) 35... Be7 {[%emt 0:02:12] [#]} 36. Bxe7 {[%emt 0:03:53][%mdl 64] Deflection} Qxe7 {[%emt 0:00:02] KQ-KQ} 37. Qd5+ {[%emt 0:00:08]} Kg7 {[%emt 0:00:53]} 38. b5 {[%emt 0:00:49]} axb5 {[%emt 0:00:53]} 39. a6 {[%emt 0:00:37]} Kh6 {[%emt 0:00:44]} 40. Qxb5 {[%emt 0:00:00]} Qe4+ {[%emt 0:00:00]} 41. Kg1 {[%emt 0:09:07]} Qe1+ {[%emt 0:05:08] [#]} 42. Qf1 $1 {[%emt 0:00:08]} Qc3 {[%emt 0:02:10]} 43. Qe2 {[%emt 0:00:55] Intending Qe3+ and mate.} ({Weaker is} 43. a7 Qa3 $11) 43... Qc1+ {[%emt 0:01:23]} 44. Kg2 {[%emt 0:02:02] White threatens Qe3+ and mate.} Qc6+ {[%emt 0:03:06]} 45. f3 {[%emt 0:05:30]} Qc5 {[%emt 0:00:27]} 46. Qd2+ {[%emt 0:01:00]} Kg7 {[%emt 0:01:32]} 47. h4 {[%emt 0:03:13]} Qa7 {[%emt 0:03:58]} 48. Qb2+ {[%emt 0:06:42]} Kh6 {[%emt 0:01:16]} 49. Qa2 {[%emt 0:01:09]} Kg7 {[%emt 0:01:25]} 50. Qa1+ {[%emt 0:00:41]} Kh6 {[%emt 0:04:04]} 51. Qf6 {[%emt 0:00:07]} Qc7 {[%emt 0:01:35]} 52. Kh3 {[%emt 0:02:03]} (52. Qd4 $142 Qc2+ 53. Kg3 Qe2 54. a7 Qe1+ 55. Kg2 Qe2+ 56. Kg3 Qe1+ 57. Qf2) 52... Qd7+ {[%emt 0:01:58]} 53. Kg3 {[%emt 0:00:34]} Qa7 {[%emt 0:00:13]} 54. Kg2 {[%emt 0:04:13] Inhibits Qg1+.} (54. Qg5+ $18 Kg7 55. Qe5+ Kh6 56. Qf4+ Kg7 57. Qc4 Qg1+ 58. Kf4) 54... Qc7 {[%emt 0:00:15]} 55. Kf2 $2 {[%emt 0:01:03]} (55. Qd4 {mates} Qc2+ 56. Kg3 Qe2 57. a7 Qe1+ 58. Qf2 Qa5 59. Qe3+ Kg7 60. Qe7+ Kh6 61. Qf8+ Kh5 62. a8=Q) 55... Qh2+ $11 {[%emt 0:04:16] The position is equal.} 56. Ke3 {[%emt 0:00:23]} Qg1+ {[%emt 0:00:08]} 57. Ke4 {[%emt 0:00:28][%cal Of6g5] White wants to mate with Qg5+!} Qb1+ {[%emt 0:02:29]} 58. Kd5 {[%emt 0:00:55]} Qb5+ {[%emt 0:00:34]} 59. Ke4 {[%emt 0:00:47][%cal Of6g5] Threatening mate with Qg5+!} Qb1+ {[%emt 0:00:03]} 60. Ke3 {[%emt 0:01:00]} Qe1+ {[%emt 0:01:56]} 61. Kd3 {[%emt 0:00:50] And now Qf4+ would win.} Qd1+ {[%emt 0:00:14]} 62. Ke4 {[%emt 0:01:34] Blacks defense is rewarded with a draw. An interesting game.   Weighted Error Value: White=0.26 (precise) /Black=0.32} (62. Kc4 $5 Qa4+ $8 63. Kc5 Qa5+ 64. Kc4 Qa4+ 65. Kd5 Qb5+ 66. Ke4 Qe2+ 67. Kf4 Qd2+ 68. Kg4 Qg2+ 69. Kf4 Qd2+ 70. Ke5 Qe2+ 71. Kf4 Qd2+ $11) 1/2-1/2

[Event "Polish Youth B18 Championship 2023"]
[Site "Jastrzebia Gora"]
[Date "2023.03.12"]
[Round "1.12"]
[White "Kacprzak, Karol"]
[Black "Lis, Maksymilian"]
[Result "1/2-1/2"]
[ECO "B42"]
[WhiteElo "2221"]
[BlackElo "1784"]
[Annotator "TA"]
[PlyCount "120"]
[EventDate "2023.03.11"]
[EventType "swiss"]
[EventCountry "POL"]
[SourceTitle "playchess.com"]
[Source "ChessBase"]
[SourceQuality "1"]
[TimeControl "40/5400+30:1800+30"]

{[%evp 14,120,42,34,38,0,20,12,31,26,23,27,42,33,37,32,47,41,42,39,39,29,47,38,39,39,39,28,39,36,51,55,70,56,52,0,63,0,55,42,38,38,43,8,16,0,26,23,36,36,36,0,0,0,45,15,20,20,42,0,0,0,0,0,0,0,11,3,951,889,1207,1184,1121,1008,1008,0,0,0,0,0,0,0,0,0,0,0,0,0,0,0,0,0,0,0,0,0,0,0,0,0,0,0,0,0,0,0,0,0,0]} 1. e4 {[%emt 0:00:10]} c5 {[%emt 0:00:14]} 2. Nf3 {[%emt 0:00:18]} e6 {[%emt 0:00:19]} 3. d4 {[%emt 0:00:12]} cxd4 {[%emt 0:00:12]} 4. Nxd4 {[%emt 0:00:06]} a6 {[%emt 0:00:07]} 5. Bd3 {[%emt 0:00:27]} Nc6 {[%emt 0:00:24]} 6. Nxc6 {[%emt 0:04:35]} dxc6 $1 {[%emt 0:00:13] The main line 6...dxc6 scores better than 6...bxc6.} 7. a4 {[%emt 0:02:12]} e5 {[%emt 0:01:54]} 8. O-O {[%emt 0:01:35]} Bc5 {[%emt 0:02:03] B42: Sicilian: Kan Variation: 5 Bd3.} 9. Qf3 {[%emt 0:09:38]} Nf6 {[%emt 0:02:20]} 10. Be3 {[%emt 0:04:54]} Qe7 {[%emt 0:02:19]} 11. a5 {[%emt 0:03:48]} O-O {[%emt 0:02:30]} 12. Nc3 {[%emt 0:02:54] [#]} Be6 $146 {[%emt 0:06:26]} ({Predecessor:} 12... Ng4 13. Bxc5 Qxc5 14. Qe2 Be6 15. Qe1 Rad8 16. Na4 Qe7 17. Qc3 Qg5 18. Be2 Nf6 {½-½ Berzinsh,R (2428)-Miezis,N (2468) LAT-ch Riga 2017 (5)}) 13. Na4 {[%emt 0:02:35]} Bxe3 {[%emt 0:00:27]} 14. Qxe3 {[%emt 0:00:03]} Nd7 {[%emt 0:00:16]} 15. Qe1 {[%emt 0:04:29]} Rfe8 {[%emt 0:09:18]} 16. Qc3 {[%emt 0:01:13]} Rad8 {[%emt 0:07:43]} 17. Rfe1 {[%emt 0:07:18]} Qd6 {[%emt 0:08:38]} 18. Bf1 {[%emt 0:17:32]} Qc7 {[%emt 0:16:54]} 19. Rad1 {[%emt 0:07:25]} Nf8 {[%emt 0:00:39]} 20. Nc5 {[%emt 0:02:29]} Bc8 21. Bc4 {[%emt 0:01:47]} Rxd1 {[%emt 0:10:56]} 22. Rxd1 {[%emt 0:00:02]} Be6 {[%emt 0:02:09]} 23. Be2 {[%emt 0:10:36] White has more active pieces.} Bc8 {[%emt 0:05:47]} 24. Bc4 {[%emt 0:02:24]} Be6 $1 {[%emt 0:00:12]} 25. Be2 {[%emt 0:02:01]} Bc8 $1 {[%emt 0:02:37]} 26. h3 {[%emt 0:03:48]} Ne6 {[%emt 0:00:47]} 27. Nxe6 {[%emt 0:00:14]} Bxe6 {[%emt 0:00:11]} 28. b4 {[%emt 0:00:15]} h6 {[%emt 0:02:31]} 29. Qd2 {[%emt 0:03:42]} Re7 {[%emt 0:02:42]} 30. Qd8+ {[%emt 0:03:05]} Qxd8 {[%emt 0:01:05]} 31. Rxd8+ $11 {[%emt 0:00:02][%mdl 4096] Endgame KRB-KRB} Kh7 {[%emt 0:00:09]} 32. Bg4 {[%emt 0:02:20]} Bxg4 {[%emt 0:00:21]} 33. hxg4 {[%emt 0:00:01] KR-KR} Kg6 {[%emt 0:00:23]} 34. Kf1 {[%emt 0:02:05]} Kg5 {[%emt 0:00:26]} 35. f3 {[%emt 0:00:04]} Rc7 {[%emt 0:00:26]} 36. Rd3 {[%emt 0:01:21]} Kf6 {[%emt 0:00:34]} 37. Ke2 {[%emt 0:00:22]} Ke7 {[%emt 0:00:06]} 38. Kd2 {[%emt 0:00:55]} f6 {[%emt 0:00:49]} 39. g3 {[%emt 0:00:28]} Rd7 {[%emt 0:00:47]} 40. Kc3 {[%emt 0:00:00]} Rxd3+ $4 {[%emt 0:00:00][%mdl 8192]} (40... g5 $11) 41. cxd3 {[%emt 0:04:02][%cal Bc2d3,Bd3d4][%mdl 32] KP-KP} g5 {[%emt 0:07:52]} 42. Kc4 {[%emt 0:05:43]} Kd7 {[%emt 0:00:52]} 43. d4 {[%emt 0:04:14]} Kc7 {[%emt 0:25:56] [#]} 44. f4 $2 {[%emt 0:06:46]} gxf4 {[%emt 0:03:36] The position is equal.} 45. gxf4 {[%emt 0:00:02]} exf4 {[%emt 0:00:11]} 46. Kd3 {[%emt 0:00:04] Threatens to win with Ke2.} b6 $1 {[%emt 0:03:05]} 47. Ke2 {[%emt 0:09:14] Black must now prevent axb6+.} bxa5 {[%emt 0:00:06]} 48. bxa5 {[%emt 0:00:02]} Kd6 {[%emt 0:01:51]} 49. Kf3 {[%emt 0:00:07]} c5 {[%emt 0:01:33]} 50. dxc5+ {[%emt 0:00:05]} Kxc5 {[%emt 0:00:01]} 51. Kxf4 {[%emt 0:00:07] K3P-K3P} Kd4 {[%emt 0:00:20]} 52. Kf5 {[%emt 0:00:44]} Ke3 {[%emt 0:00:54]} 53. Kxf6 {[%emt 0:01:05] [#] Threatening mate with e5.} Kxe4 {[%emt 0:00:04] KPP-KPP} 54. Kg6 {[%emt 0:00:23]} Kf4 {[%emt 0:00:05]} 55. Kxh6 {[%emt 0:00:34] g5 would kill now.} Kxg4 {[%emt 0:00:04] KP-KP} 56. Kg6 {[%emt 0:00:02]} Kf4 {[%emt 0:00:27]} 57. Kf6 {[%emt 0:00:06]} Kg4 {[%emt 0:00:02]} 58. Ke6 {[%emt 0:00:36]} Kg5 {[%emt 0:00:06]} 59. Ke5 {[%emt 0:00:43]} Kg6 {[%emt 0:00:20]} 60. Ke6 {[%emt 0:00:15]} Kg5 {[%emt 0:00:10] Weighted Error Value: White=0.19 (very precise) /Black=0.07 (flawless)} 1/2-1/2